[Event "DVM U12w 2023"]
[Site "Magdeburg"]
[Date "2023.12.29"]
[Round "6"]
[White "Wilke, Ronja"]
[Black "Trush, Diana"]
[Result "1-0"]
[WhiteElo "1224"]
[BlackElo "980"]
[PlyCount "87"]
[EventDate "2022.12.27"]
[EventType "team-tourn"]
[EventRounds "7"]
[EventCountry "GER"]
[TimeControl "40/5400+30:1800+30"]
[WhiteClock "1:09:53"]
[BlackClock "0:52:10"]

1. e4 {[%emt 0:00:02]} e5 {[%emt 0:01:52]} 2. Nf3 {[%emt 0:00:23]} Nc6 {[%emt 0:00:38]} 3. Bc4 {[%emt 0:00:36]} Be7 {[%emt 0:00:56]} 4. Nc3 {[%emt 0:02:29]} Nf6 {[%emt 0:00:31]} 5. d3 {[%emt 0:00:58]} d6 {[%emt 0:02:17]} 6. O-O {[%emt 0:01:42]} Bg4 {[%emt 0:00:50]} 7. h3 {[%emt 0:00:58]} Bh5 {[%emt 0:00:56]} 8. Be3 {[%emt 0:01:54]} Nd4 {[%emt 0:00:48]} 9. Nb1 {[%emt 0:06:06]} d5 {[%emt 0:03:05]} 10. exd5 {[%emt 0:02:31]} Nxd5 {[%emt 0:00:22]} 11. Bxd4 {[%emt 0:01:28]} exd4 {[%emt 0:00:11]} 12. Re1 {[%emt 0:00:55]} c6 {[%emt 0:00:38]} 13. Nbd2 {[%emt 0:04:29]} O-O {[%emt 0:00:15]} 14. Bxd5 {[%emt 0:00:28]} cxd5 {[%emt 0:00:08]} 15. Qe2 {[%emt 0:00:38]} Re8 {[%emt 0:00:09]} 16. Qe5 {[%emt 0:01:16]} Bg6 {[%emt 0:00:43]} 17. Qxd4 {[%emt 0:01:26]} b6 {[%emt 0:00:43]} 18. Re5 {[%emt 0:04:49]} Bf6 {[%emt 0:00:36]} 19. Rxe8+ {[%emt 0:00:29]} Qxe8 {[%emt 0:00:05]} 20. Qxd5 {[%emt 0:00:24]} Rd8 {[%emt 0:00:05]} 21. Qb3 {[%emt 0:01:17]} Qe2 {[%emt 0:01:09]} 22. Re1 {[%emt 0:01:00]} Qxe1+ {[%emt 0:00:37]} 23. Nxe1 {[%emt 0:00:11]} Re8 {[%emt 0:00:06]} 24. Nef3 {[%emt 0:00:37]} Bh5 {[%emt 0:00:26]} 25. Qb5 {[%emt 0:00:21]} Re7 {[%emt 0:01:53]} 26. Qxh5 {[%emt 0:00:12]} Bxb2 {[%emt 0:00:16]} 27. Qd5 {[%emt 0:00:32]} Re8 {[%emt 0:00:18]} 28. Qb5 {[%emt 0:00:06]} Rf8 {[%emt 0:00:42]} 29. Qxb2 {[%emt 0:00:11]} f6 {[%emt 0:03:26]} 30. d4 {[%emt 0:00:19]} Rb8 {[%emt 0:01:30]} 31. c4 {[%emt 0:00:41]} Rc8 {[%emt 0:01:05]} 32. d5 {[%emt 0:00:42]} Kf8 {[%emt 0:10:45]} 33. Nd4 {[%emt 0:00:18]} Ke8 {[%emt 0:05:45]} 34. Nb5 {[%emt 0:00:09]} Kd8 {[%emt 0:07:39]} 35. Nxa7 {[%emt 0:00:15]} Rb8 {[%emt 0:04:21]} 36. Nc6+ {[%emt 0:00:10]} Kc7 {[%emt 0:01:31]} 37. Nxb8 {[%emt 0:00:17]} Kxb8 {[%emt 0:00:51]} 38. Qxb6+ {[%emt 0:00:09]} Kc8 {[%emt 0:00:06]} 39. Qd6 {[%emt 0:00:53]} g5 {[%emt 0:00:31]} 40. a4 {[%emt 0:00:09]} Kb7 {[%emt 0:00:12]} 41. Qc6+ {[%emt 0:30:07]} Kb8 {[%emt 0:30:27]} 42. a5 {[%emt 0:00:08]} Ka7 {[%emt 0:00:19]} 43. a6 {[%emt 0:00:00]} Kb8 {[%emt 0:00:07]} 44. Qb7# {[%emt 0:00:00] normal} 1-0

[Event "DVM U12w 2023"]
[Site "Magdeburg"]
[Date "2023.12.29"]
[Round "6"]
[White "Mauhs, Helena"]
[Black "Zhou, Leyi Charlotte"]
[Result "0-1"]
[WhiteElo "1194"]
[BlackElo "1335"]
[PlyCount "104"]
[EventDate "2022.12.27"]
[EventType "team-tourn"]
[EventRounds "7"]
[EventCountry "GER"]
[TimeControl "40/5400+30:1800+30"]
[WhiteClock "0:14:19"]
[BlackClock "1:03:44"]

1. e4 {[%emt 0:00:02]} e5 {[%emt 0:00:09]} 2. Nf3 {[%emt 0:00:07]} Nc6 {[%emt 0:00:18]} 3. Bc4 {[%emt 0:00:14]} Nf6 {[%emt 0:00:22]} 4. d3 {[%emt 0:00:23]} d5 {[%emt 0:00:51]} 5. exd5 {[%emt 0:04:10]} Nxd5 {[%emt 0:00:09]} 6. Be3 {[%emt 0:02:20]} Nxe3 {[%emt 0:00:47]} 7. fxe3 {[%emt 0:00:34]} Bg4 {[%emt 0:00:24]} 8. Nbd2 {[%emt 0:02:06]} Bc5 {[%emt 0:00:54]} 9. Qe2 {[%emt 0:04:36]} Qd7 {[%emt 0:02:43]} 10. h3 {[%emt 0:05:21]} Bh5 {[%emt 0:00:38]} 11. g4 {[%emt 0:02:16]} Bg6 {[%emt 0:00:15]} 12. O-O-O {[%emt 0:02:33]} O-O-O {[%emt 0:00:16]} 13. Rhf1 {[%emt 0:04:10]} h5 {[%emt 0:01:54]} 14. Ng5 {[%emt 0:19:27]} Rdf8 {[%emt 0:05:50]} 15. Qf3 {[%emt 0:05:52]} hxg4 {[%emt 0:00:12]} 16. hxg4 {[%emt 0:01:23]} Nd8 {[%emt 0:04:45]} 17. Nde4 {[%emt 0:06:07]} Bb6 {[%emt 0:04:32]} 18. Nc3 {[%emt 0:02:49]} f6 {[%emt 0:00:34]} 19. Nge4 {[%emt 0:03:45]} f5 {[%emt 0:03:42]} 20. gxf5 {[%emt 0:01:45]} Bh5 {[%emt 0:06:06]} 21. Qf2 {[%emt 0:01:54]} Bxd1 {[%emt 0:01:22]} 22. Kxd1 {[%emt 0:00:26]} Qe8 {[%emt 0:02:22]} 23. d4 {[%emt 0:01:20]} exd4 {[%emt 0:00:47]} 24. exd4 {[%emt 0:00:16]} Nc6 {[%emt 0:01:45]} 25. Bb5 {[%emt 0:01:14]} Qh5+ {[%emt 0:00:52]} 26. Be2 {[%emt 0:01:53]} Qh6 {[%emt 0:01:12]} 27. f6 {[%emt 0:01:02]} gxf6 {[%emt 0:00:10]} 28. Nxf6 {[%emt 0:00:35]} Bxd4 {[%emt 0:00:43]} 29. Qf5+ {[%emt 0:00:58]} Kb8 {[%emt 0:01:42]} 30. Nd7+ {[%emt 0:00:29]} Ka8 {[%emt 0:01:04]} 31. Nxf8 {[%emt 0:00:35]} Bxc3 {[%emt 0:05:30]} 32. bxc3 {[%emt 0:00:34]} Qd6+ {[%emt 0:00:08]} 33. Kc1 {[%emt 0:00:19]} Ne7 {[%emt 0:02:40]} 34. Qf3 {[%emt 0:01:28]} Qh6+ {[%emt 0:00:44]} 35. Kb1 {[%emt 0:01:41]} Qb6+ {[%emt 0:01:59]} 36. Kc1 {[%emt 0:00:16]} Qd6 {[%emt 0:03:13]} 37. Qf7 {[%emt 0:06:29]} a6 {[%emt 0:02:34]} 38. Rf6 {[%emt 0:02:22]} Qa3+ {[%emt 0:05:12]} 39. Kd2 {[%emt 0:01:22]} Rh1 {[%emt 0:02:31]} 40. Rf1 {[%emt 0:09:29]} Rh2 {[%emt 0:01:49]} 41. Rf3 {[%emt 0:34:49]} Qd6+ {[%emt 0:33:08]} 42. Kc1 {[%emt 0:00:00]} Rxe2 {[%emt 0:00:00]} 43. Qe8+ {[%emt 0:00:00]} Ka7 {[%emt 0:00:00]} 44. Nd7 {[%emt 0:00:00]} Qd2+ {[%emt 0:00:00]} 45. Kb2 {[%emt 0:00:00]} Qxc2+ {[%emt 0:00:00]} 46. Ka3 {[%emt 0:00:00]} Qxa2+ {[%emt 0:00:00]} 47. Kb4 {[%emt 0:00:00]} Nc6+ {[%emt 0:00:00]} 48. Kc5 {[%emt 0:00:00]} Rxe8 {[%emt 0:00:00]} 49. Rf5 {[%emt 0:00:00]} Qa5+ {[%emt 0:00:00]} 50. Kc4 {[%emt 0:00:00]} Qxf5 {[%emt 0:00:00]} 51. Kb3 {[%emt 0:00:00]} Qb1+ {[%emt 0:00:00]} 52. Kc4 {[%emt 0:00:00]} Qb5# {[%emt 0:00:00] normal} 0-1

[Event "DVM U12w 2023"]
[Site "Magdeburg"]
[Date "2023.12.29"]
[Round "6"]
[White "Cao, Weiqi"]
[Black "Rätsch, Elina"]
[Result "1-0"]
[WhiteElo "1191"]
[BlackElo "869"]
[PlyCount "155"]
[EventDate "2022.12.27"]
[EventType "team-tourn"]
[EventRounds "7"]
[EventCountry "GER"]
[TimeControl "40/5400+30:1800+30"]
[WhiteClock "0:45:27"]
[BlackClock "0:53:27"]

1. d4 {[%emt 0:00:00]} Nf6 {[%emt 0:00:00]} 2. Nf3 {[%emt 0:00:00]} d5 {[%emt 0:00:06]} 3. g3 {[%emt 0:00:00]} e6 {[%emt 0:00:31]} 4. Bg2 {[%emt 0:00:00]} c6 {[%emt 0:00:15]} 5. O-O {[%emt 0:00:07]} Nbd7 {[%emt 0:00:22]} 6. c4 {[%emt 0:00:32]} Be7 {[%emt 0:00:44]} 7. b3 {[%emt 0:01:06]} b6 {[%emt 0:00:24]} 8. Ba3 {[%emt 0:00:22]} Bb7 {[%emt 0:00:39]} 9. Bxe7 {[%emt 0:00:38]} Qxe7 {[%emt 0:00:19]} 10. Nc3 {[%emt 0:00:24]} O-O {[%emt 0:00:29]} 11. Rc1 {[%emt 0:00:53]} Rac8 {[%emt 0:00:31]} 12. Re1 {[%emt 0:00:44]} Rfe8 {[%emt 0:00:31]} 13. Qd2 {[%emt 0:01:34]} Ng4 {[%emt 0:01:18]} 14. h3 {[%emt 0:01:41]} Ngf6 {[%emt 0:00:54]} 15. e4 {[%emt 0:03:10]} dxc4 {[%emt 0:00:33]} 16. bxc4 {[%emt 0:00:39]} e5 {[%emt 0:00:27]} 17. d5 {[%emt 0:03:51]} cxd5 {[%emt 0:01:11]} 18. cxd5 {[%emt 0:01:31]} Qb4 {[%emt 0:07:01]} 19. Kh2 {[%emt 0:03:31]} Rc4 {[%emt 0:01:00]} 20. Nh4 {[%emt 0:03:58]} Nc5 {[%emt 0:00:36]} 21. a3 {[%emt 0:02:23]} Qa5 {[%emt 0:01:25]} 22. Re2 {[%emt 0:06:32]} Qxa3 {[%emt 0:02:06]} 23. Qc2 {[%emt 0:04:46]} b5 {[%emt 0:04:00]} 24. Ree1 {[%emt 0:02:54]} b4 {[%emt 0:02:18]} 25. Nb5 {[%emt 0:00:29]} Rxc2 {[%emt 0:01:25]} 26. Nxa3 {[%emt 0:00:06]} Rxc1 {[%emt 0:00:33]} 27. Rxc1 {[%emt 0:00:22]} Rc8 {[%emt 0:00:41]} 28. Nc4 {[%emt 0:01:24]} Ncxe4 {[%emt 0:00:32]} 29. Nf5 {[%emt 0:04:04]} Bxd5 {[%emt 0:01:43]} 30. Ne7+ {[%emt 0:00:09]} Kf8 {[%emt 0:01:25]} 31. Nxc8 {[%emt 0:00:11]} Bxc4 {[%emt 0:02:45]} 32. Bxe4 {[%emt 0:00:55]} Nxe4 {[%emt 0:01:01]} 33. Rxc4 {[%emt 0:00:18]} Nxf2 {[%emt 0:00:41]} 34. Rxb4 {[%emt 0:00:31]} f5 {[%emt 0:01:06]} 35. Nd6 {[%emt 0:02:10]} g6 {[%emt 0:00:29]} 36. Kg2 {[%emt 0:02:29]} Nd3 {[%emt 0:00:38]} 37. Rb3 {[%emt 0:00:52]} e4 {[%emt 0:00:13]} 38. Kf1 {[%emt 0:01:27]} Ke7 {[%emt 0:01:41]} 39. Nc8+ {[%emt 0:00:27]} Ke6 {[%emt 0:00:12]} 40. Nxa7 {[%emt 0:01:46]} Kd5 {[%emt 0:00:35]} 41. Rc3 {[%emt 0:30:41]} Kd4 {[%emt 0:30:48]} 42. Nb5+ {[%emt 0:00:19]} Ke3 {[%emt 0:04:06]} 43. g4 {[%emt 0:01:02]} f4 {[%emt 0:00:25]} 44. Nd6 {[%emt 0:06:34]} Kf3 {[%emt 0:05:02]} 45. Ra3 {[%emt 0:03:02]} Ke3 {[%emt 0:02:20]} 46. Rc3 {[%emt 0:01:48]} Kf3 {[%emt 0:00:15]} 47. g5 {[%emt 0:01:14]} Ke3 {[%emt 0:03:34]} 48. Ra3 {[%emt 0:01:03]} Kf3 {[%emt 0:00:38]} 49. Nc4 {[%emt 0:01:08]} Kg3 {[%emt 0:02:30]} 50. Ne5 {[%emt 0:01:06]} f3 {[%emt 0:00:43]} 51. Nxd3 {[%emt 0:00:24]} exd3 {[%emt 0:01:35]} 52. Rxd3 {[%emt 0:00:18]} Kxh3 {[%emt 0:00:36]} 53. Rd5 {[%emt 0:00:16]} Kg4 {[%emt 0:00:33]} 54. Kf2 {[%emt 0:00:16]} Kf4 {[%emt 0:00:24]} 55. Rd7 {[%emt 0:00:21]} Kxg5 {[%emt 0:00:34]} 56. Rxh7 {[%emt 0:00:07]} Kg4 {[%emt 0:00:16]} 57. Rf7 {[%emt 0:00:31]} Kg5 {[%emt 0:00:18]} 58. Rxf3 {[%emt 0:00:13]} Kg4 {[%emt 0:00:14]} 59. Ra3 {[%emt 0:00:21]} g5 {[%emt 0:00:10]} 60. Ra4+ {[%emt 0:00:50]} Kf5 {[%emt 0:00:43]} 61. Kg3 {[%emt 0:00:00]} Ke5 {[%emt 0:01:32]} 62. Kg4 {[%emt 0:00:00]} Kd5 {[%emt 0:00:25]} 63. Ra5+ {[%emt 0:00:01]} Ke4 {[%emt 0:00:06]} 64. Rxg5 {[%emt 0:00:13]} Kd4 {[%emt 0:00:10]} 65. Kf4 {[%emt 0:00:15]} Kc4 {[%emt 0:00:17]} 66. Re5 {[%emt 0:00:17]} Kd4 {[%emt 0:00:21]} 67. Kf5 {[%emt 0:00:10]} Kd3 {[%emt 0:00:17]} 68. Re4 {[%emt 0:00:18]} Kc3 {[%emt 0:00:33]} 69. Ke5 {[%emt 0:00:25]} Kb3 {[%emt 0:00:16]} 70. Kd5 {[%emt 0:00:08]} Kc3 {[%emt 0:00:10]} 71. Rd4 {[%emt 0:00:04]} Kb3 {[%emt 0:00:13]} 72. Ke4 {[%emt 0:00:20]} Kc3 {[%emt 0:00:10]} 73. Ke3 {[%emt 0:00:51]} Kb2 {[%emt 0:00:54]} 74. Rd3 {[%emt 0:00:00]} Kc2 {[%emt 0:00:08]} 75. Ke2 {[%emt 0:00:00]} Kb2 {[%emt 0:00:09]} 76. Kd2 {[%emt 0:00:08]} Ka2 {[%emt 0:00:31]} 77. Kc2 {[%emt 0:00:18]} Ka1 {[%emt 0:00:17]} 78. Ra3# {[%emt 0:00:05] normal} 1-0

[Event "DVM U12w 2023"]
[Site "Magdeburg"]
[Date "2023.12.29"]
[Round "6"]
[White "Wolf, Helena"]
[Black "Berger, Jennifer"]
[Result "1-0"]
[WhiteElo "1188"]
[BlackElo "1210"]
[PlyCount "51"]
[EventDate "2022.12.27"]
[EventType "team-tourn"]
[EventRounds "7"]
[EventCountry "GER"]
[TimeControl "40/5400+30:1800+30"]
[WhiteClock "0:54:44"]
[BlackClock "1:21:13"]

1. e4 {[%emt 0:00:01]} e5 {[%emt 0:00:15]} 2. Nf3 {[%emt 0:00:05]} Nc6 {[%emt 0:00:22]} 3. Bc4 {[%emt 0:00:08]} Bc5 {[%emt 0:00:32]} 4. c3 {[%emt 0:00:14]} d6 {[%emt 0:03:12]} 5. d4 {[%emt 0:00:17]} Bb6 {[%emt 0:00:19]} 6. O-O {[%emt 0:00:42]} Nf6 {[%emt 0:00:20]} 7. Nbd2 {[%emt 0:01:26]} O-O {[%emt 0:00:18]} 8. Re1 {[%emt 0:00:18]} Bg4 {[%emt 0:00:09]} 9. h3 {[%emt 0:00:08]} Bh5 {[%emt 0:00:07]} 10. Nf1 {[%emt 0:01:33]} exd4 {[%emt 0:00:49]} 11. Ng3 {[%emt 0:14:17]} dxc3 {[%emt 0:00:45]} 12. bxc3 {[%emt 0:03:03]} Bg6 {[%emt 0:00:23]} 13. Nh4 {[%emt 0:05:12]} Bh5 {[%emt 0:01:20]} 14. Nxh5 {[%emt 0:03:40]} Nxh5 {[%emt 0:01:48]} 15. Qxh5 {[%emt 0:00:33]} g6 {[%emt 0:01:03]} 16. Qh6 {[%emt 0:04:11]} Qf6 {[%emt 0:00:31]} 17. Re2 {[%emt 0:09:11]} Qxc3 {[%emt 0:00:27]} 18. Bb2 {[%emt 0:00:27]} Be3 {[%emt 0:01:42]} 19. fxe3 {[%emt 0:01:23]} Qxb2 {[%emt 0:01:59]} 20. Rxb2 {[%emt 0:00:10]} b6 {[%emt 0:00:06]} 21. Bd5 {[%emt 0:00:16]} Rad8 {[%emt 0:01:24]} 22. Bxc6 {[%emt 0:00:05]} a5 {[%emt 0:00:23]} 23. Nf3 {[%emt 0:00:34]} Rb8 {[%emt 0:00:58]} 24. Ng5 {[%emt 0:00:11]} Rfc8 {[%emt 0:00:42]} 25. Qxh7+ {[%emt 0:00:08]} Kf8 {[%emt 0:01:53]} 26. Qxf7# {[%emt 0:00:33] normal} 1-0

[Event "DVM U12w 2023"]
[Site "Magdeburg"]
[Date "2023.12.29"]
[Round "6"]
[White "Ruddat, Maila"]
[Black "Shynkar, Daria"]
[Result "0-1"]
[WhiteElo "1187"]
[BlackElo "1316"]
[PlyCount "118"]
[EventDate "2022.12.27"]
[EventType "team-tourn"]
[EventRounds "7"]
[EventCountry "GER"]
[TimeControl "40/5400+30:1800+30"]
[WhiteClock "0:59:52"]
[BlackClock "0:23:48"]

1. e4 {[%emt 0:00:09]} c5 {[%emt 0:00:09]} 2. d3 {[%emt 0:00:17]} Nc6 {[%emt 0:00:06]} 3. Be2 {[%emt 0:00:18]} e6 {[%emt 0:00:38]} 4. Be3 {[%emt 0:02:30]} d6 {[%emt 0:01:50]} 5. f4 {[%emt 0:02:13]} d5 {[%emt 0:02:10]} 6. Nf3 {[%emt 0:00:36]} dxe4 {[%emt 0:02:59]} 7. dxe4 {[%emt 0:00:25]} Qxd1+ {[%emt 0:00:28]} 8. Bxd1 {[%emt 0:00:12]} b6 {[%emt 0:00:56]} 9. O-O {[%emt 0:00:19]} Nge7 {[%emt 0:02:17]} 10. Nc3 {[%emt 0:01:15]} a6 {[%emt 0:01:41]} 11. Be2 {[%emt 0:01:22]} g6 {[%emt 0:03:16]} 12. Rad1 {[%emt 0:00:59]} Bg7 {[%emt 0:01:38]} 13. Bd2 {[%emt 0:04:13]} O-O {[%emt 0:01:42]} 14. Be3 {[%emt 0:01:03]} Nb4 {[%emt 0:04:17]} 15. Rd6 {[%emt 0:02:52]} Rb8 {[%emt 0:12:03]} 16. a3 {[%emt 0:05:15]} Nbc6 {[%emt 0:00:31]} 17. Nd1 {[%emt 0:05:58]} Bb7 {[%emt 0:03:20]} 18. c3 {[%emt 0:03:01]} Rfd8 {[%emt 0:12:21]} 19. Rxd8+ {[%emt 0:03:17]} Rxd8 {[%emt 0:00:16]} 20. Nf2 {[%emt 0:00:21]} h6 {[%emt 0:05:53]} 21. Rd1 {[%emt 0:01:27]} Rxd1+ {[%emt 0:01:15]} 22. Bxd1 {[%emt 0:00:21]} Na5 {[%emt 0:02:29]} 23. e5 {[%emt 0:03:15]} Nd5 {[%emt 0:01:19]} 24. Bd2 {[%emt 0:01:26]} Nc4 {[%emt 0:01:54]} 25. Bc1 {[%emt 0:00:59]} b5 {[%emt 0:10:35]} 26. Nd2 {[%emt 0:01:20]} Nxd2 {[%emt 0:01:22]} 27. Bxd2 {[%emt 0:03:10]} c4 {[%emt 0:00:28]} 28. Bf3 {[%emt 0:00:29]} Kf8 {[%emt 0:02:34]} 29. Kf1 {[%emt 0:00:24]} Ke7 {[%emt 0:00:43]} 30. Nd1 {[%emt 0:00:33]} h5 {[%emt 0:01:13]} 31. g3 {[%emt 0:00:59]} Kd7 {[%emt 0:02:06]} 32. Kf2 {[%emt 0:01:02]} Kc7 {[%emt 0:02:56]} 33. Ne3 {[%emt 0:00:20]} Nxe3 {[%emt 0:00:16]} 34. Bxe3 {[%emt 0:00:05]} Bxf3 {[%emt 0:00:12]} 35. Kxf3 {[%emt 0:00:09]} Bf8 {[%emt 0:00:31]} 36. Ke4 {[%emt 0:00:59]} Kc6 {[%emt 0:01:32]} 37. Bd4 {[%emt 0:00:14]} Bc5 {[%emt 0:01:03]} 38. b4 {[%emt 0:00:46]} cxb3 {[%emt 0:00:09]} 39. Bxc5 {[%emt 0:01:05]} Kxc5 {[%emt 0:00:07]} 40. Kd3 {[%emt 0:00:13]} Kd5 {[%emt 0:00:17]} 41. h3 {[%emt 0:30:16]} a5 {[%emt 0:30:57]} 42. h4 {[%emt 0:00:22]} a4 {[%emt 0:00:08]} 43. Kd2 {[%emt 0:00:29]} Kc4 {[%emt 0:00:07]} 44. Kc1 {[%emt 0:00:14]} Kxc3 {[%emt 0:00:06]} 45. Kb1 {[%emt 0:00:28]} b4 {[%emt 0:00:22]} 46. axb4 {[%emt 0:00:14]} Kxb4 {[%emt 0:00:05]} 47. Kb2 {[%emt 0:00:13]} a3+ {[%emt 0:00:04]} 48. Kb1 {[%emt 0:00:12]} Kc3 {[%emt 0:00:09]} 49. Kc1 {[%emt 0:00:05]} a2 {[%emt 0:00:10]} 50. Kd1 {[%emt 0:00:04]} a1=Q+ {[%emt 0:00:14]} 51. Ke2 {[%emt 0:00:13]} Qb2+ {[%emt 0:00:11]} 52. Ke3 {[%emt 0:00:10]} Qd2+ {[%emt 0:00:07]} 53. Kf3 {[%emt 0:00:19]} Qd3+ {[%emt 0:00:22]} 54. Kf2 {[%emt 0:00:06]} Kd2 {[%emt 0:00:12]} 55. Kg2 {[%emt 0:00:09]} Ke2 {[%emt 0:00:36]} 56. Kg1 {[%emt 0:00:10]} Qf3 {[%emt 0:00:32]} 57. Kh2 {[%emt 0:00:05]} Kf2 {[%emt 0:00:05]} 58. f5 {[%emt 0:00:18]} Qxg3+ {[%emt 0:00:08]} 59. Kh1 {[%emt 0:00:10]} Qg2# {[%emt 0:00:05] normal} 0-1

[Event "DVM U12w 2023"]
[Site "Magdeburg"]
[Date "2023.12.29"]
[Round "6"]
[White "Daaboul, Dima"]
[Black "Roessling, Laura Marie"]
[Result "1/2-1/2"]
[WhiteElo "1184"]
[BlackElo "1232"]
[PlyCount "78"]
[EventDate "2022.12.27"]
[EventType "team-tourn"]
[EventRounds "7"]
[EventCountry "GER"]
[TimeControl "40/5400+30:1800+30"]
[WhiteClock "0:27:15"]
[BlackClock "1:09:41"]

1. e4 {[%emt 0:00:02]} e5 {[%emt 0:00:06]} 2. Nf3 {[%emt 0:00:09]} Nc6 {[%emt 0:00:07]} 3. Bc4 {[%emt 0:00:11]} Bc5 {[%emt 0:00:09]} 4. c3 {[%emt 0:00:37]} Nf6 {[%emt 0:00:06]} 5. d4 {[%emt 0:00:48]} exd4 {[%emt 0:00:08]} 6. cxd4 {[%emt 0:00:08]} Bb4+ {[%emt 0:00:06]} 7. Nc3 {[%emt 0:00:53]} O-O {[%emt 0:00:21]} 8. Bg5 {[%emt 0:02:47]} h6 {[%emt 0:01:40]} 9. Bh4 {[%emt 0:03:13]} Be7 {[%emt 0:01:08]} 10. Bxf6 {[%emt 0:04:35]} Bxf6 {[%emt 0:00:54]} 11. O-O {[%emt 0:01:25]} d6 {[%emt 0:00:48]} 12. h3 {[%emt 0:01:11]} Ne7 {[%emt 0:01:39]} 13. Re1 {[%emt 0:03:36]} Ng6 {[%emt 0:01:09]} 14. e5 {[%emt 0:07:12]} Bh4 {[%emt 0:02:13]} 15. Qd3 {[%emt 0:04:09]} dxe5 {[%emt 0:03:03]} 16. dxe5 {[%emt 0:03:06]} Qxd3 {[%emt 0:01:38]} 17. Bxd3 {[%emt 0:00:11]} Be7 {[%emt 0:00:41]} 18. Rad1 {[%emt 0:04:25]} Be6 {[%emt 0:01:59]} 19. Nd4 {[%emt 0:05:02]} c6 {[%emt 0:01:16]} 20. Nxe6 {[%emt 0:00:57]} fxe6 {[%emt 0:00:20]} 21. Bxg6 {[%emt 0:00:15]} Bc5 {[%emt 0:00:48]} 22. Rf1 {[%emt 0:00:56]} Rf4 {[%emt 0:02:59]} 23. Ne2 {[%emt 0:02:32]} Rb4 {[%emt 0:03:18]} 24. b3 {[%emt 0:02:07]} Rf8 {[%emt 0:00:52]} 25. g3 {[%emt 0:03:39]} a5 {[%emt 0:01:50]} 26. Nf4 {[%emt 0:05:00]} Bb6 {[%emt 0:01:56]} 27. Nxe6 {[%emt 0:03:53]} Ra8 {[%emt 0:01:30]} 28. Rd7 {[%emt 0:04:57]} a4 {[%emt 0:01:05]} 29. Rxg7+ {[%emt 0:00:11]} Kh8 {[%emt 0:00:25]} 30. Rh7+ {[%emt 0:00:04]} Kg8 {[%emt 0:00:15]} 31. Bf7+ {[%emt 0:00:08]} Kxh7 {[%emt 0:00:09]} 32. Re1 {[%emt 0:08:06]} axb3 {[%emt 0:00:58]} 33. axb3 {[%emt 0:00:11]} Ra2 {[%emt 0:00:32]} 34. Rf1 {[%emt 0:01:37]} Rxb3 {[%emt 0:00:51]} 35. Nf8+ {[%emt 0:00:15]} Kg7 {[%emt 0:00:16]} 36. Bxb3 {[%emt 0:00:12]} Rb2 {[%emt 0:00:58]} 37. Ne6+ {[%emt 0:01:02]} Kg6 {[%emt 0:00:37]} 38. Bd1 {[%emt 0:01:20]} Rb5 {[%emt 0:00:27]} 39. Re1 {[%emt 0:01:43]} Rb2 {[%emt 0:01:02] normal Ab Zug 40 nicht mehr nachvollziehbar} 1/2-1/2

[Event "DVM U12w 2023"]
[Site "Magdeburg"]
[Date "2023.12.29"]
[Round "6"]
[White "Wieckowicz, Bui Havy"]
[Black "Korwitz, Pauline"]
[Result "0-1"]
[WhiteElo "1175"]
[BlackElo "1219"]
[PlyCount "62"]
[EventDate "2022.12.27"]
[EventType "team-tourn"]
[EventRounds "7"]
[EventCountry "GER"]
[TimeControl "40/5400+30:1800+30"]
[WhiteClock "0:19:52"]
[BlackClock "0:55:13"]

1. e4 {[%emt 0:00:02]} c5 {[%emt 0:00:09]} 2. Nf3 {[%emt 0:00:07]} d6 {[%emt 0:00:18]} 3. d4 {[%emt 0:00:08]} cxd4 {[%emt 0:00:18]} 4. Nxd4 {[%emt 0:00:11]} Nf6 {[%emt 0:00:11]} 5. Nc3 {[%emt 0:00:11]} a6 {[%emt 0:00:17]} 6. f3 {[%emt 0:00:50]} Nbd7 {[%emt 0:01:40]} 7. Be3 {[%emt 0:01:01]} e6 {[%emt 0:01:10]} 8. Qd2 {[%emt 0:02:03]} Be7 {[%emt 0:00:42]} 9. O-O-O {[%emt 0:02:46]} O-O {[%emt 0:01:11]} 10. Kb1 {[%emt 0:00:30]} Qc7 {[%emt 0:01:05]} 11. g4 {[%emt 0:02:00]} Ne5 {[%emt 0:01:15]} 12. Be2 {[%emt 0:02:22]} b5 {[%emt 0:01:12]} 13. b3 {[%emt 0:06:29]} Bd7 {[%emt 0:02:28]} 14. h4 {[%emt 0:06:55]} Rfc8 {[%emt 0:03:38]} 15. h5 {[%emt 0:02:25]} g6 {[%emt 0:01:19]} 16. Rc1 {[%emt 0:03:31]} Qxc3 {[%emt 0:06:55]} 17. Qxc3 {[%emt 0:01:07]} Rxc3 {[%emt 0:00:13]} 18. Bd2 {[%emt 0:01:52]} Rcc8 {[%emt 0:01:09]} 19. h6 {[%emt 0:05:53]} Nc6 {[%emt 0:02:25]} 20. Bc3 {[%emt 0:04:19]} Nxd4 {[%emt 0:01:44]} 21. Bxd4 {[%emt 0:01:37]} a5 {[%emt 0:02:37]} 22. g5 {[%emt 0:03:20]} Nh5 {[%emt 0:01:07]} 23. Rhg1 {[%emt 0:01:47]} a4 {[%emt 0:03:32]} 24. Kb2 {[%emt 0:02:14]} axb3 {[%emt 0:00:57]} 25. axb3 {[%emt 0:00:27]} Ra6 {[%emt 0:00:41]} 26. Bd3 {[%emt 0:00:55]} Rca8 {[%emt 0:02:58]} 27. Kb1 {[%emt 0:01:03]} f6 {[%emt 0:01:54]} 28. Bb2 {[%emt 0:10:53]} fxg5 {[%emt 0:01:45]} 29. c3 {[%emt 0:01:29]} Bf6 {[%emt 0:02:35]} 30. Rcd1 {[%emt 0:08:55]} Ra2 {[%emt 0:01:55]} 31. Rc1 {[%emt 0:08:46]} b4 {[%emt 0:01:27] normal} 0-1

[Event "DVM U12w 2023"]
[Site "Magdeburg"]
[Date "2023.12.29"]
[Round "6"]
[White "Stepanova, Anhelina"]
[Black "Briese, Sophie"]
[Result "0-1"]
[WhiteElo "1172"]
[BlackElo "1207"]
[PlyCount "66"]
[EventDate "2022.12.27"]
[EventType "team-tourn"]
[EventRounds "7"]
[EventCountry "GER"]
[TimeControl "40/5400+30:1800+30"]
[WhiteClock "1:23:48"]
[BlackClock "0:25:36"]

1. d4 {[%emt 0:00:08]} Nf6 {[%emt 0:00:08]} 2. h3 {[%emt 0:00:35]} d5 {[%emt 0:00:07]} 3. Bf4 {[%emt 0:00:09]} c5 {[%emt 0:00:25]} 4. e3 {[%emt 0:01:31]} Nc6 {[%emt 0:00:55]} 5. c3 {[%emt 0:00:39]} e6 {[%emt 0:01:04]} 6. Nf3 {[%emt 0:00:14]} Bd6 {[%emt 0:00:36]} 7. Ne5 {[%emt 0:00:33]} O-O {[%emt 0:01:17]} 8. Nd2 {[%emt 0:00:09]} a6 {[%emt 0:03:27]} 9. Ndf3 {[%emt 0:01:18]} Ne4 {[%emt 0:03:49]} 10. Qc2 {[%emt 0:01:08]} f6 {[%emt 0:05:31]} 11. Nxc6 {[%emt 0:00:49]} bxc6 {[%emt 0:00:37]} 12. Bxd6 {[%emt 0:00:04]} Qxd6 {[%emt 0:01:50]} 13. Bd3 {[%emt 0:00:24]} f5 {[%emt 0:03:28]} 14. b3 {[%emt 0:00:21]} Bb7 {[%emt 0:03:34]} 15. Ne5 {[%emt 0:00:45]} cxd4 {[%emt 0:03:09]} 16. exd4 {[%emt 0:00:31]} Rac8 {[%emt 0:06:43]} 17. f3 {[%emt 0:01:14]} Ng3 {[%emt 0:02:16]} 18. Rh2 {[%emt 0:01:24]} c5 {[%emt 0:03:13]} 19. Qf2 {[%emt 0:00:18]} f4 {[%emt 0:02:53]} 20. Ng4 {[%emt 0:01:20]} cxd4 {[%emt 0:01:27]} 21. Qxd4 {[%emt 0:02:05]} Rc7 {[%emt 0:05:20]} 22. O-O-O {[%emt 0:00:34]} Rfc8 {[%emt 0:02:25]} 23. Kb2 {[%emt 0:00:07]} a5 {[%emt 0:04:49]} 24. Rc1 {[%emt 0:01:27]} Ba6 {[%emt 0:07:29]} 25. Bxa6 {[%emt 0:00:35]} Qxa6 {[%emt 0:00:12]} 26. Qxf4 {[%emt 0:00:31]} Qe2+ {[%emt 0:00:11]} 27. Kb1 {[%emt 0:01:18]} Qd3+ {[%emt 0:04:23]} 28. Kb2 {[%emt 0:00:23]} Rxc3 {[%emt 0:03:01]} 29. Rxc3 {[%emt 0:00:42]} Qxc3+ {[%emt 0:01:18]} 30. Ka3 {[%emt 0:00:10]} a4 {[%emt 0:04:32]} 31. Qxg3 {[%emt 0:01:17]} Qc1+ {[%emt 0:00:25]} 32. Kb4 {[%emt 0:00:19]} Qc5+ {[%emt 0:00:19]} 33. Kxa4 {[%emt 0:00:10]} Ra8# {[%emt 0:00:31] normal} 0-1